bitfinex/quotes_BTCUSD_20260101
["timestamp","ask_amount","ask_price","bid_price","bid_amount"]
[1767294638687,0.04859119,88179.0,88166.0,0.01134224]
[1767294638899,0.03514713,88178.0,88164.0,0.01134249]
[1767294639060,0.02450938,88177.0,88164.0,0.01134249]
[1767294639258,0.04859119,88179.0,88164.0,0.01134249]
[1767294639462,0.03514684,88178.0,88164.0,0.01134249]
[1767294639661,0.02450918,88177.0,88164.0,0.01134249]
[1767294639958,0.04859119,88179.0,88164.0,0.01134249]
[1767294640145,0.03514684,88178.0,88164.0,0.01134249]
[1767294640349,0.04859119,88179.0,88164.0,0.01134249]
[1767294640350,0.02450918,88177.0,88164.0,0.01134249]
[1767294640548,0.04859119,88179.0,88164.0,0.01134249]
[1767294640755,0.03514658,88178.0,88164.0,0.01134249]
[1767294640965,0.024509,88177.0,88164.0,0.01134249]
[1767294641141,0.04859119,88179.0,88164.0,0.01134249]
[1767294641348,0.0351464,88178.0,88164.0,0.01134249]
[1767294641544,0.02450888,88177.0,88164.0,0.01134249]
[1767294641868,0.04859119,88179.0,88164.0,0.01134249]
[1767294642081,0.0351464,88178.0,88164.0,0.01134249]
[1767294642215,0.02450888,88177.0,88164.0,0.01134249]
[1767294642418,0.04859119,88179.0,88164.0,0.01134249]
[1767294642658,0.03514629,88178.0,88164.0,0.01134249]
[1767294642867,0.0245088,88177.0,88164.0,0.01134249]
[1767294643044,0.04859119,88179.0,88164.0,0.01134249]
[1767294643251,0.03514629,88178.0,88164.0,0.01134249]
[1767294643457,0.0245088,88177.0,88164.0,0.01134249]
[1767294643654,0.04859119,88179.0,88164.0,0.01134249]
[1767294643863,0.03514625,88178.0,88166.0,0.01134224]
[1767294644187,0.02450878,88177.0,88166.0,0.01134224]
[1767294644344,0.04859119,88179.0,88166.0,0.01134224]
[1767294644525,0.03514624,88178.0,88166.0,0.01134224]
[1767294644735,0.02450877,88177.0,88166.0,0.01134224]
[1767294644973,0.04859119,88179.0,88166.0,0.01134224]
[1767294645187,0.03514625,88178.0,88165.0,0.01134236]
[1767294645383,0.02450878,88177.0,88165.0,0.01134236]
[1767294645733,0.04859119,88179.0,88165.0,0.01134236]
[1767294645951,0.03514627,88178.0,88165.0,0.01134236]
[1767294646156,0.02450879,88177.0,88165.0,0.01134236]
[1767294646363,0.04859119,88179.0,88165.0,0.01134236]
[1767294646563,0.03514665,88178.0,88164.0,0.01134249]
[1767294646773,0.02450906,88177.0,88164.0,0.01134249]
[1767294646910,0.04859119,88179.0,88164.0,0.01134249]
[1767294647111,0.03514664,88178.0,88165.0,0.01134236]
[1767294647313,0.02450905,88177.0,88165.0,0.01134236]
[1767294647512,0.04859119,88179.0,88165.0,0.06805407]
[1767294647713,0.03514714,88178.0,88166.0,0.01134224]
[1767294647917,0.0245094,88177.0,88166.0,0.01134224]
[1767294648160,0.04859119,88179.0,88166.0,0.01134224]
[1767294648355,0.03514774,88178.0,88166.0,0.01134224]
[1767294648667,0.02450982,88177.0,88166.0,0.01134224]
[1767294648872,0.04859119,88179.0,88166.0,0.01134224]
[1767294649032,0.03514774,88178.0,88166.0,0.01134224]
[1767294649237,0.02450982,88177.0,88166.0,0.01134224]
[1767294649440,0.04859119,88179.0,88166.0,0.01134224]
[1767294649671,0.03514845,88178.0,88165.0,0.02270236]
[1767294649832,0.02451031,88177.0,88166.0,0.01134224]
[1767294650030,0.04859119,88179.0,88166.0,0.01134224]
[1767294650235,0.02451031,88178.0,88166.0,0.01134224]
[1767294650544,0.02451031,88178.0,88169.0,0.01134185]
[1767294650750,0.02451031,88178.0,88167.0,0.05671006]
[1767294651539,0.02451031,88178.0,88168.0,0.01134198]
[1767294651758,0.02451031,88178.0,88167.0,0.05671006]
[1767294651956,0.02451031,88178.0,88168.0,0.01134198]
[1767294652187,0.02451031,88178.0,88169.0,0.01134185]
[1767294652591,0.04859119,88179.0,88169.0,0.01134185]
[1767294652787,0.02451203,88178.0,88169.0,0.01134185]
[1767294652948,0.04859119,88179.0,88168.0,0.01134198]
[1767294653145,0.02451204,88178.0,88168.0,0.01134198]
[1767294653926,0.02451204,88178.0,88169.0,0.01134185]
[1767294655576,0.02451204,88178.0,88168.0,0.01134198]
[1767294655782,0.02451204,88178.0,88169.0,0.01134185]
[1767294656824,0.02451204,88178.0,88170.0,0.01134172]
[1767294657261,0.02451204,88178.0,88169.0,0.01134185]
[1767294658232,0.02451204,88178.0,88170.0,0.01134172]
[1767294658846,0.02451204,88178.0,88171.0,0.01134159]
[1767294659055,0.02451204,88178.0,88169.0,0.01134185]
[1767294660289,0.02451204,88178.0,88168.0,0.01134198]
[1767294660702,0.02451204,88178.0,88169.0,0.01134185]
[1767294660861,0.02451204,88178.0,88170.0,0.01134172]
[1767294661079,0.02451204,88178.0,88171.0,0.01134159]
[1767294661276,0.02451204,88178.0,88170.0,0.01134172]
[1767294661685,0.02451204,88178.0,88171.0,0.01134159]
[1767294661901,0.02451204,88178.0,88170.0,0.01134172]
[1767294662106,0.02451204,88178.0,88171.0,0.01134159]
[1767294662327,0.02451204,88178.0,88170.0,0.01134172]
[1767294663745,0.02451204,88178.0,88171.0,0.01134159]
[1767294663883,0.02451204,88178.0,88170.0,0.01134172]
[1767294664275,0.04859119,88179.0,88169.0,0.01134185]
[1767294664531,0.04859119,88179.0,88169.0,0.45361537]
[1767294664743,0.04859119,88179.0,88169.0,0.45289748]
[1767294664927,0.04859119,88179.0,88170.0,0.01134172]
[1767294667378,0.04859119,88179.0,88169.0,0.45289748]
[1767294668266,0.04859119,88179.0,88170.0,0.01134172]
[1767294669909,0.04859119,88179.0,88167.0,0.01134211]
[1767294670108,0.04859119,88179.0,88165.0,0.02270236]
[1767294670389,0.02451516,88178.0,88166.0,0.01134224]
[1767294670600,0.02451516,88178.0,88165.0,0.02270236]
[1767294670730,0.02451516,88178.0,88166.0,0.01134224]
[1767294671172,0.02451516,88178.0,88165.0,0.01136]
[1767294671529,0.02451516,88178.0,88166.0,0.01134224]
[1767294672100,0.02451516,88178.0,88167.0,0.01134211]
[1767294672898,0.02451516,88178.0,88166.0,0.01134224]
[1767294673344,0.02451516,88178.0,88165.0,0.02270236]
[1767294674437,0.02451516,88178.0,88167.0,0.01134211]
[1767294674763,0.04859119,88179.0,88167.0,0.01134211]
[1767294674923,0.02451623,88178.0,88167.0,0.01134211]
[1767294676107,0.02451623,88178.0,88166.0,0.01134224]
[1767294676314,0.02451623,88178.0,88165.0,0.02270236]
[1767294678431,0.02451623,88178.0,88166.0,0.01134224]
[1767294679334,0.02451623,88178.0,88165.0,0.02270236]
[1767294679958,0.02451623,88178.0,88166.0,0.01134224]
[1767294680697,0.02451623,88178.0,88167.0,0.01134211]
[1767294681216,0.02451623,88178.0,88168.0,0.01134198]
[1767294683221,0.02451623,88178.0,88166.0,0.01134224]
[1767294683417,0.01064214,88177.0,88166.0,0.01134224]
[1767294683633,0.02451623,88176.0,88166.0,0.01134224]
[1767294683834,0.04859119,88179.0,88167.0,0.01134211]
[1767294684034,0.03516154,88178.0,88167.0,0.01134211]
[1767294684253,0.03516154,88177.0,88167.0,0.01134211]
[1767294684414,0.02451924,88176.0,88167.0,0.01134211]
[1767294684620,0.05995119,88179.0,88166.0,0.01134224]
[1767294684822,0.03516106,88178.0,88166.0,0.01134224]
[1767294685025,0.03516106,88177.0,88166.0,0.01134224]
[1767294685264,0.02451893,88176.0,88166.0,0.01076805]
[1767294685472,0.05995119,88179.0,88165.0,0.02270236]
[1767294685655,0.03516059,88178.0,88165.0,0.01136]
[1767294685854,0.02451863,88177.0,88165.0,0.02270236]
[1767294686060,0.02451863,88176.0,88165.0,0.02270236]
[1767294686258,0.05995119,88179.0,88165.0,0.02270236]
[1767294686460,0.03516029,88178.0,88165.0,0.02270236]
[1767294686674,0.03516029,88177.0,88165.0,0.02270236]
[1767294686872,0.05995119,88179.0,88165.0,0.02270236]
[1767294687244,0.03516029,88178.0,88165.0,0.02270236]
[1767294687444,0.03516029,88177.0,88166.0,0.01134224]
[1767294687597,0.02451843,88176.0,88165.0,0.01136]
[1767294687914,0.05995119,88179.0,88165.0,0.01136]
[1767294688118,0.03516005,88178.0,88165.0,0.02270236]
[1767294688319,0.02451828,88177.0,88165.0,0.01136]
[1767294688518,0.02451828,88176.0,88165.0,0.02270236]
[1767294688719,0.05995119,88179.0,88165.0,0.02270236]
[1767294689041,0.0351598,88178.0,88165.0,0.02270236]
[1767294689243,0.02451812,88177.0,88165.0,0.02270236]
[1767294689407,0.05995119,88179.0,88165.0,0.02270236]
[1767294689722,0.03515961,88178.0,88165.0,0.01136]
[1767294689870,0.024518,88177.0,88165.0,0.01136]
[1767294690073,0.05995119,88179.0,88165.0,0.02270236]
[1767294690269,0.03515961,88178.0,88165.0,0.02270236]
[1767294690528,0.024518,88177.0,88165.0,0.02270236]
[1767294690690,0.05995119,88179.0,88165.0,0.02270236]
[1767294690893,0.03515948,88178.0,88165.0,0.02270236]
[1767294691104,0.02451792,88177.0,88165.0,0.02270236]
[1767294691292,0.05995119,88179.0,88165.0,0.02270236]
[1767294691492,0.03515935,88178.0,88165.0,0.02270236]
[1767294691695,0.02451784,88177.0,88165.0,0.02270236]
[1767294691960,0.05995119,88179.0,88166.0,0.01134224]
[1767294692093,0.03515937,88178.0,88166.0,0.01134224]
[1767294692426,0.02451785,88177.0,88166.0,0.01134224]
[1767294692730,0.05995119,88179.0,88166.0,0.01134224]
[1767294693044,0.03515931,88178.0,88166.0,0.01134224]
[1767294693210,0.02451782,88177.0,88165.0,0.02270236]
[1767294693394,0.05995119,88179.0,88165.0,0.02270236]
[1767294693594,0.0351593,88178.0,88165.0,0.02270236]
[1767294693796,0.02451782,88177.0,88167.0,0.01134211]
[1767294694017,0.05995119,88179.0,88167.0,0.01134211]
[1767294694194,0.03515931,88178.0,88166.0,0.01134224]
[1767294694395,0.02451782,88177.0,88166.0,0.01134224]
[1767294694592,0.05995119,88179.0,88165.0,0.02270236]
[1767294694798,0.03515933,88178.0,88165.0,0.02270236]
[1767294694994,0.02451784,88177.0,88165.0,0.01136]
[1767294695221,0.05995119,88179.0,88165.0,0.01136]
[1767294695400,0.03515939,88178.0,88165.0,0.02270236]
[1767294695600,0.02451789,88177.0,88166.0,0.01134224]
[1767294695820,0.05995119,88179.0,88166.0,0.01134224]
[1767294696023,0.03515938,88178.0,88167.0,0.01134211]
[1767294696226,0.02451789,88177.0,88167.0,0.01134211]
[1767294696425,0.05995119,88179.0,88167.0,0.01134211]
[1767294696667,0.03515951,88178.0,88168.0,0.01134198]
[1767294696879,0.02451798,88177.0,88167.0,0.01134211]
[1767294697081,0.05995119,88179.0,88167.0,0.01134211]
[1767294697281,0.03515951,88178.0,88167.0,0.01134211]
[1767294697486,0.02451798,88177.0,88167.0,0.01134211]
[1767294697630,0.05995119,88179.0,88167.0,0.01134211]
[1767294697835,0.03515968,88178.0,88169.0,0.44227352]
[1767294698053,0.02451811,88177.0,88169.0,0.44227352]
[1767294698267,0.05995119,88179.0,88169.0,0.44227352]
[1767294698488,0.03515891,88178.0,88169.0,0.44227352]
[1767294698633,0.02451825,88177.0,88169.0,0.44227352]
[1767294698988,0.05995119,88179.0,88169.0,0.44227352]
[1767294699192,0.03515807,88178.0,88167.0,0.45361563]
[1767294699483,0.02451707,88177.0,88168.0,0.44227352]
[1767294699694,0.05995119,88179.0,88168.0,0.44227352]
[1767294699995,0.03515841,88178.0,88168.0,0.4536155]
[1767294700148,0.02451723,88177.0,88168.0,0.4536155]
[1767294700374,0.05995119,88179.0,88168.0,0.4536155]
[1767294700582,0.03515867,88178.0,88168.0,0.4536155]
[1767294700824,0.02451742,88177.0,88168.0,0.4536155]
[1767294700982,0.05995119,88179.0,88168.0,0.4536155]
[1767294701202,0.03515872,88178.0,88168.0,0.4536155]
[1767294701406,0.02451745,88177.0,88168.0,0.4536155]
[1767294701640,0.05995119,88179.0,88168.0,0.44227352]
[1767294701782,0.03515881,88178.0,88168.0,0.44227352]
[1767294702138,0.02451752,88177.0,88168.0,0.44227352]
[1767294702280,0.05995119,88179.0,88168.0,0.44227352]
[1767294702504,0.0351589,88178.0,88168.0,0.44227352]
[1767294702706,0.02451759,88177.0,88168.0,0.44227352]
[1767294703050,0.05995119,88179.0,88168.0,0.44227352]
[1767294703188,0.03515891,88178.0,88168.0,0.44227352]
[1767294703392,0.05995119,88179.0,88168.0,0.44227352]
[1767294703393,0.02451759,88177.0,88168.0,0.44227352]
[1767294703587,0.05995119,88179.0,88168.0,0.44227352]
[1767294703830,0.03515906,88178.0,88168.0,0.44227352]
[1767294704033,0.02451771,88177.0,88168.0,0.44227352]
[1767294704193,0.05995119,88179.0,88168.0,0.44227352]
[1767294704403,0.03515909,88178.0,88168.0,0.44227352]
[1767294704633,0.0245177,88177.0,88168.0,0.44227352]
[1767294704833,0.05995119,88179.0,88168.0,0.44227352]
[1767294705109,0.03515922,88178.0,88168.0,0.441556]
[1767294705336,0.02451783,88177.0,88168.0,0.441556]
[1767294705671,0.02451783,88176.0,88168.0,0.441556]
[1767294705797,0.05995119,88179.0,88168.0,0.441556]
[1767294705993,0.0351594,88178.0,88168.0,0.441556]
[1767294706241,0.03515945,88177.0,88169.0,0.01134185]
[1767294706440,0.02451796,88176.0,88169.0,0.01134185]
[1767294706691,0.05995119,88179.0,88168.0,0.45289798]
[1767294706830,0.03515961,88178.0,88168.0,0.45289798]
[1767294707026,0.02451811,88177.0,88168.0,0.45289798]
[1767294707228,0.02451811,88176.0,88168.0,0.45289798]
[1767294707434,0.05995119,88179.0,88168.0,0.441556]
[1767294707663,0.03515986,88178.0,88168.0,0.441556]
[1767294707865,0.03515986,88177.0,88168.0,0.441556]
[1767294708123,0.0245183,88176.0,88168.0,0.45289798]
[1767294708424,0.05995119,88179.0,88168.0,0.01134198]
[1767294708545,0.03516015,88178.0,88168.0,0.01134198]
[1767294708896,0.03516014,88177.0,88168.0,0.01134198]
[1767294709082,0.02451851,88176.0,88167.0,0.01134211]
[1767294709277,0.05995119,88179.0,88167.0,0.01134211]
[1767294709481,0.03516049,88178.0,88167.0,0.01134211]
[1767294709658,0.03516049,88177.0,88167.0,0.01134211]
[1767294709868,0.02451876,88176.0,88168.0,0.01134198]
[1767294710067,0.05995119,88179.0,88168.0,0.01134198]
[1767294710285,0.0351605,88178.0,88168.0,0.01134198]
[1767294710460,0.0351605,88177.0,88168.0,0.01134198]
[1767294710661,0.02451877,88176.0,88168.0,0.01134198]
[1767294710867,0.05995119,88179.0,88167.0,0.01134211]
[1767294711063,0.03516091,88178.0,88167.0,0.01134211]
[1767294711283,0.03516091,88177.0,88168.0,0.44227352]
[1767294711465,0.02451908,88176.0,88168.0,0.44227352]
[1767294711687,0.05995119,88179.0,88168.0,0.44227352]
[1767294711898,0.03516153,88178.0,88168.0,0.4536155]
[1767294712205,0.03516153,88177.0,88168.0,0.4536155]
[1767294712385,0.02451955,88176.0,88168.0,0.4536155]
[1767294712585,0.05995119,88179.0,88168.0,0.4536155]
[1767294712904,0.03516253,88178.0,88168.0,0.44227352]
[1767294713082,0.03516253,88177.0,88168.0,0.4536155]
[1767294713282,0.02452036,88176.0,88168.0,0.4536155]
[1767294713603,0.05995119,88179.0,88168.0,0.4536155]
[1767294713825,0.03516305,88178.0,88168.0,0.4536155]
[1767294714020,0.03516305,88177.0,88168.0,0.4536155]
[1767294714210,0.02452049,88176.0,88168.0,0.4536155]
[1767294714416,0.03064527,88185.0,88176.0,0.01134095]
[1767294714552,0.01136,88182.0,88175.0,0.44227352]
[1767294714758,0.03516471,88181.0,88174.0,0.06804676]
[1767294714955,0.02452188,88180.0,88175.0,0.01134108]
[1767294715211,0.01136,88187.0,88175.0,0.01134108]
[1767294715410,0.03515705,88186.0,88175.0,0.01134108]
[1767294715709,0.03515705,88185.0,88176.0,0.45361447]
[1767294715911,0.03515705,88184.0,88176.0,0.45361447]
[1767294716094,0.03515705,88183.0,88176.0,0.45361447]
[1767294716413,0.01136,88187.0,88176.0,0.45361447]
[1767294716414,0.02451627,88182.0,88176.0,0.45361447]
[1767294716578,0.01136,88187.0,88176.0,0.45361447]
[1767294716779,0.03515196,88186.0,88176.0,0.45361447]
[1767294716974,0.03515196,88185.0,88176.0,0.45361447]
[1767294717201,0.03515196,88184.0,88176.0,0.45361447]
[1767294717400,0.03515196,88183.0,88176.0,0.45361447]
[1767294717596,0.01136,88187.0,88175.0,0.01134108]
[1767294717781,0.0351483,88186.0,88175.0,0.01134108]
[1767294717978,0.0351483,88185.0,88175.0,0.01134108]
[1767294718296,0.0351483,88184.0,88175.0,0.01134108]
[1767294718502,0.0351483,88183.0,88176.0,0.01134095]
[1767294718703,0.0351483,88182.0,88176.0,0.01134095]
[1767294718871,0.01136,88187.0,88176.0,0.01134095]
[1767294719068,0.03514674,88186.0,88175.0,0.01134108]
[1767294719273,0.03514674,88185.0,88176.0,0.01134095]
[1767294719483,0.03514674,88184.0,88176.0,0.01134095]
[1767294719683,0.03514674,88183.0,88175.0,0.01134108]
[1767294719883,0.02450906,88182.0,88175.0,0.01134108]
[1767294720135,0.01136,88187.0,88175.0,0.01134108]
[1767294720360,0.03514535,88186.0,88174.0,0.45361473]
[1767294720503,0.01136,88187.0,88174.0,0.45361473]
[1767294720504,0.03514535,88185.0,88176.0,0.44227352]
[1767294720709,0.03514535,88184.0,88173.0,0.04681926]
[1767294720909,0.03514535,88183.0,88173.0,0.04681926]
[1767294721148,0.000549,88173.0,88167.0,0.04681926]
[1767294721326,0.000549,88173.0,88168.0,0.01134198]
[1767294721491,0.0489634,88184.0,88169.0,0.01134185]
[1767294721691,0.08410778,88183.0,88169.0,0.01134185]
[1767294721951,0.03514438,88182.0,88169.0,0.01134185]
[1767294722176,0.02450742,88181.0,88169.0,0.01134185]
[1767294722322,0.0489634,88183.0,88167.0,0.05816137]
[1767294722527,0.03514392,88182.0,88170.0,0.44227352]
[1767294722725,0.0245071,88181.0,88170.0,0.44227352]
[1767294724662,0.0245071,88181.0,88167.0,0.05816137]
[1767294725013,0.0245071,88181.0,88168.0,0.01134198]
[1767294725338,0.0245071,88181.0,88167.0,0.05816137]
[1767294725766,0.0245071,88181.0,88168.0,0.01134198]
[1767294726906,0.0245071,88181.0,88167.0,0.01134211]
[1767294727194,0.0489634,88180.0,88168.0,0.01134198]
[1767294727421,0.0489634,88180.0,88165.0,0.01136]
[1767294727634,0.0489634,88180.0,88165.0,0.02270236]
[1767294728080,0.0489634,88180.0,88166.0,0.01134224]
[1767294728284,0.0489634,88180.0,88165.0,0.02270236]
[1767294728694,0.0245064,88179.0,88165.0,0.02270236]
[1767294728840,0.0245064,88179.0,88166.0,0.04681926]
[1767294729030,0.06804039,88183.0,88166.0,0.04627026]
[1767294729228,0.03514403,88182.0,88166.0,0.04627026]
[1767294729430,0.04648434,88181.0,88166.0,0.04627026]
[1767294729780,0.08410743,88180.0,88165.0,0.01136]
[1767294729979,0.02450718,88179.0,88165.0,0.01136]
[1767294730158,0.07347058,88179.0,88165.0,0.01136]
[1767294730361,0.0489634,88179.0,88165.0,0.01136]
[1767294732109,0.0603234,88179.0,88165.0,0.01136]
[1767294733239,0.0489634,88177.0,88161.0,0.01134288]
[1767294733473,0.0489634,88177.0,88160.0,0.02270301]
[1767294733673,0.0489634,88177.0,88161.0,0.01134288]
[1767294733815,0.01136,88179.0,88160.0,0.02270301]
[1767294733816,0.0489634,88175.0,88160.0,0.02270301]
[1767294733993,0.0489634,88175.0,88160.0,0.01136]
[1767294734428,0.0489634,88175.0,88160.0,0.02270301]
[1767294734640,0.0489634,88175.0,88154.0,0.01134378]
[1767294734641,0.0489634,88159.0,88151.0,0.0002]
[1767294734863,0.0489634,88159.0,88151.0,0.01154417]
[1767294735078,0.0489634,88159.0,88151.0,0.0002]
[1767294735267,0.01136,88166.0,88151.0,0.01154417]
[1767294735268,0.0489634,88165.0,88151.0,0.01154417]
[1767294735504,0.0489634,88165.0,88152.0,0.01134404]
[1767294736706,0.0489634,88165.0,88153.0,0.01134391]
[1767294736894,0.0489634,88165.0,88154.0,0.01134378]
[1767294737948,0.0489634,88165.0,88153.0,0.01134391]
[1767294738179,0.0489634,88165.0,88154.0,0.01134378]
[1767294738381,0.0489634,88165.0,88153.0,0.01134391]
[1767294738824,0.0489634,88165.0,88152.0,0.01134404]
[1767294740373,0.0489634,88165.0,88153.0,0.01134391]
[1767294740943,0.0489634,88165.0,88152.0,0.01134404]
[1767294741655,0.0489634,88165.0,88151.0,0.01154417]
[1767294741885,0.0489634,88165.0,88152.0,0.01134404]
[1767294742415,0.0489634,88165.0,88153.0,0.01134391]
[1767294742725,0.0489634,88165.0,88152.0,0.01134404]
[1767294745260,0.0489634,88165.0,88153.0,0.01134391]
[1767294748876,0.0489634,88165.0,88152.0,0.01134404]
[1767294749719,0.0489634,88165.0,88153.0,0.01134391]
[1767294751076,0.0489634,88165.0,88154.0,0.01134378]
[1767294751836,0.01136,88164.0,88156.0,0.01134352]
[1767294752456,0.01136,88164.0,88155.0,0.01134365]
[1767294752681,0.01136,88164.0,88154.0,0.01134378]
[1767294753084,0.01136,88164.0,88155.0,0.01134365]
[1767294753928,0.01136,88164.0,88154.0,0.01134378]
[1767294754947,0.01136,88164.0,88154.0,0.01169631]
[1767294756359,0.01136,88164.0,88155.0,0.01134365]
[1767294756741,0.01136,88164.0,88156.0,0.01134352]
[1767294756948,0.01136,88164.0,88157.0,0.01134339]
[1767294758570,0.01136,88168.0,88164.0,0.0476327]
[1767294758971,0.01136,88168.0,88159.0,0.0470837]
[1767294763849,0.01136,88168.0,88159.0,0.04063076]
[1767294768732,0.01136,88168.0,88159.0,0.0519739]
[1767294768885,0.01136,88168.0,88159.0,0.04063076]
[1767294769514,0.01136,88168.0,88159.0,0.0519739]
[1767294769676,0.01136,88168.0,88159.0,0.04063076]
[1767294772466,0.01136,88168.0,88158.0,0.45361308]
[1767294774786,0.01136,88168.0,88158.0,0.44226981]
[1767294776389,0.01136,88168.0,88158.0,0.45361308]
[1767294776587,0.01136,88168.0,88158.0,0.44226981]
[1767294777376,0.01136,88171.0,88158.0,0.44226981]
[1767294777509,0.03514679,88170.0,88158.0,0.44226981]
[1767294777710,0.03514679,88169.0,88158.0,0.44226981]
[1767294777927,0.02450907,88168.0,88158.0,0.44226981]
[1767294778125,0.05760008,88171.0,88158.0,0.44226981]
[1767294778375,0.03514712,88170.0,88158.0,0.44226981]
[1767294778605,0.03514712,88169.0,88158.0,0.44226981]
[1767294778802,0.02450932,88168.0,88158.0,0.44226981]
[1767294778960,0.05760008,88171.0,88158.0,0.44226981]
[1767294779157,0.03514702,88170.0,88158.0,0.44222714]
[1767294779384,0.03514702,88169.0,88158.0,0.44222714]
[1767294779585,0.02450925,88168.0,88158.0,0.44222714]
[1767294779762,0.05760008,88171.0,88158.0,0.44222714]
[1767294779980,0.03514741,88170.0,88158.0,0.44222714]
[1767294780180,0.03514741,88169.0,88158.0,0.44222714]
[1767294780401,0.02450952,88168.0,88158.0,0.44222714]
[1767294780579,0.05760008,88171.0,88158.0,0.44222714]
[1767294780780,0.03514793,88170.0,88158.0,0.44222714]
[1767294781036,0.03514793,88169.0,88158.0,0.44222714]
[1767294781246,0.02450988,88168.0,88158.0,0.44222714]
[1767294781524,0.05760008,88171.0,88158.0,0.44222714]
[1767294781752,0.03514865,88170.0,88158.0,0.44222714]
[1767294781882,0.03514865,88169.0,88158.0,0.44222714]
[1767294782083,0.02451038,88168.0,88158.0,0.44222714]
[1767294782286,0.05760008,88171.0,88158.0,0.44222714]
[1767294782488,0.03514927,88170.0,88158.0,0.45357041]
[1767294782688,0.03514927,88169.0,88158.0,0.44222714]
[1767294782914,0.02451095,88168.0,88158.0,0.44222714]
[1767294783077,0.01136,88170.0,88158.0,0.45357041]
[1767294783274,0.03515024,88169.0,88158.0,0.45357041]
[1767294783475,0.02451169,88168.0,88158.0,0.45357041]
[1767294783809,0.01136,88170.0,88158.0,0.45357041]
[1767294784008,0.03515054,88169.0,88158.0,0.45357041]
[1767294784190,0.02451169,88168.0,88158.0,0.45357041]
[1767294784389,0.01136,88170.0,88158.0,0.45357041]
[1767294784574,0.03515175,88169.0,88157.0,0.02270339]
[1767294784774,0.02451252,88168.0,88157.0,0.02270339]
[1767294785006,0.01136,88170.0,88157.0,0.02270339]
[1767294785209,0.03515175,88169.0,88157.0,0.02270339]
[1767294785402,0.02451252,88168.0,88157.0,0.02270339]
[1767294785624,0.01136,88170.0,88158.0,0.01134327]
[1767294785846,0.03515326,88169.0,88157.0,0.02270339]
[1767294786042,0.02451356,88168.0,88157.0,0.02270339]
[1767294786214,0.01136,88170.0,88157.0,0.02270339]
[1767294786420,0.03515465,88169.0,88157.0,0.02270339]
[1767294786626,0.02451491,88168.0,88160.0,0.44235886]
[1767294786862,0.01136,88170.0,88160.0,0.44235886]
[1767294787002,0.03515523,88169.0,88160.0,0.44235886]
[1767294787201,0.02451491,88168.0,88160.0,0.44235886]
[1767294787402,0.02451491,88167.0,88160.0,0.44235886]
[1767294787612,0.01136,88170.0,88160.0,0.44235886]
[1767294787932,0.03515801,88169.0,88160.0,0.44235886]
[1767294788134,0.03515801,88168.0,88160.0,0.44235886]
[1767294788314,0.01136,88170.0,88160.0,0.44235886]
[1767294788315,0.0245168,88167.0,88160.0,0.44235886]
[1767294788516,0.01136,88170.0,88160.0,0.44235886]
[1767294788834,0.03516064,88169.0,88160.0,0.44235886]
[1767294789037,0.03516064,88168.0,88160.0,0.44235886]
[1767294789238,0.02451878,88167.0,88160.0,0.44235886]
[1767294789396,0.01136,88170.0,88160.0,0.44235886]
[1767294789595,0.03516064,88169.0,88160.0,0.43932288]
[1767294789802,0.03516064,88168.0,88160.0,0.43932288]
[1767294790038,0.02451879,88167.0,88160.0,0.43932288]
[1767294790252,0.05760008,88170.0,88160.0,0.43932288]
[1767294790462,0.03516074,88169.0,88160.0,0.43932288]
[1767294790615,0.03516074,88168.0,88160.0,0.43932288]
[1767294790821,0.00055,88160.0,88157.0,0.01136]
[1767294791014,0.04624008,88166.0,88157.0,0.01136]
[1767294795528,0.04624008,88166.0,88157.0,0.02270339]
[1767294796144,0.04624008,88166.0,88157.0,0.01136]
[1767294796751,0.04124008,88166.0,88157.0,0.01136]
[1767294796966,0.04124008,88166.0,88157.0,0.02270339]
[1767294797139,0.04124008,88166.0,88157.0,0.01136]
[1767294800355,0.04124008,88166.0,88157.0,0.02270339]
[1767294800539,0.04124008,88166.0,88157.0,0.01136]
[1767294800742,0.0113452,88143.0,88140.0,0.0001454]
[1767294800959,0.0113452,88143.0,88123.0,0.01149317]
[1767294800960,0.04638508,88140.0,88123.0,0.01149317]
[1767294801097,0.04624008,88140.0,88130.0,0.44235886]
[1767294801442,0.04624008,88139.0,88130.0,0.44235886]
[1767294803036,0.04624008,88139.0,88127.0,0.01134726]
[1767294803236,0.04624008,88139.0,88125.0,0.01134751]
[1767294803473,0.04719874,88137.0,88124.0,0.01134764]
[1767294803668,0.04719874,88137.0,88125.0,0.01134751]
[1767294803810,0.04719874,88137.0,88124.0,0.01134764]
[1767294804023,0.04719874,88137.0,88125.0,0.01134751]
[1767294804494,0.04719874,88137.0,88126.0,0.01134738]
[1767294805004,0.04719874,88137.0,88125.0,0.01134751]
[1767294805327,0.04719874,88137.0,88124.0,0.01134764]
[1767294805529,0.04719874,88137.0,88125.0,0.01134751]
[1767294805988,0.04719874,88137.0,88123.0,0.0001454]
[1767294806967,0.04719874,88137.0,88123.0,0.01149317]
[1767294807169,0.04719874,88137.0,88123.0,0.0001454]
[1767294807598,0.44235886,88133.0,88123.0,0.0001454]
[1767294807814,0.04719874,88137.0,88123.0,0.0001454]
[1767294808415,0.04719874,88137.0,88124.0,0.01134764]
[1767294808615,0.04719874,88137.0,88125.0,0.01134751]
[1767294809037,0.04719874,88137.0,88124.0,0.01134764]
[1767294810816,0.04719874,88137.0,88125.0,0.01134751]
[1767294814258,0.04719874,88137.0,88123.0,0.0001454]
[1767294814990,0.04719874,88137.0,88124.0,0.01134764]
[1767294815838,0.04719874,88137.0,88123.0,0.01149317]
[1767294816033,0.04719874,88137.0,88124.0,0.01134764]
[1767294817271,0.04719874,88137.0,88123.0,0.01149317]
[1767294817723,0.04719874,88137.0,88123.0,0.0001454]
[1767294817894,0.01136,88138.0,88110.0,0.01134803]
[1767294817895,0.00055,88123.0,88112.0,0.04929382]
[1767294818095,0.00050689,88123.0,88114.0,0.01149433]
[1767294818302,0.01136,88124.0,88117.0,0.01144854]
[1767294818511,0.01136,88124.0,88117.0,0.0001]
[1767294819574,0.01136,88124.0,88117.0,0.01144854]
[1767294819773,0.011318,88124.0,88117.0,0.0001]
[1767294820281,0.04719874,88123.0,88117.0,0.0001]
[1767294820479,0.011318,88124.0,88117.0,0.0001]
[1767294821298,0.01134623,88135.0,88117.0,0.0001]
[1767294821299,0.04547817,88134.0,88124.0,0.00055]
[1767294821526,0.04547817,88134.0,88117.0,0.04939382]
[1767294821527,0.01136,88133.0,88122.0,0.04929382]
[1767294821724,0.01136,88133.0,88122.0,0.06064172]
[1767294821957,0.44235886,88140.0,88122.0,0.06064172]
[1767294821958,0.01136,88132.0,88126.0,0.04929382]
[1767294822141,0.01136,88132.0,88124.0,0.01134764]
[1767294822142,0.01136,88132.0,88125.0,0.04929382]
[1767294826673,0.01136,88131.0,88125.0,0.04929382]
[1767294826874,0.01081,88131.0,88128.0,0.04929382]
[1767294827508,0.01081,88131.0,88125.0,0.01134751]
[1767294828522,0.01081,88131.0,88124.0,0.01134764]
[1767294828715,0.01081,88131.0,88125.0,0.01134751]
[1767294829324,0.01081,88131.0,88124.0,0.01134764]